bitfinex-derivatives/quotes_ETHF0:USTF0_20240830
["timestamp","ask_amount","ask_price","bid_price","bid_amount"]
[1725013357678,7.14893163,2521.6,2521.5,3.97192156]
[1725013357881,7.14893163,2521.6,2521.5,4.76278141]
[1725013358083,7.14893163,2521.6,2521.5,3.97340074]
[1725013358286,7.14893163,2521.6,2521.5,4.36771254]
[1725013358584,7.14893163,2521.6,2521.5,2.53860133]
[1725013359283,7.14893163,2521.6,2521.5,2.53852644]
[1725013360085,8.14031163,2521.6,2521.5,2.53852644]
[1725013362392,8.14031163,2521.6,2521.5,1.89633168]
[1725013362654,8.14031163,2521.6,2521.5,2.53877738]
[1725013364490,12.10591163,2521.6,2521.5,2.53877738]
[1725013364706,12.10591163,2521.6,2521.5,1.66118107]
[1725013365097,12.48971163,2521.6,2521.5,1.66118107]
[1725013365487,12.48971163,2521.6,2521.5,1.01883318]
[1725013367702,8.52411163,2521.6,2521.5,1.01883318]
[1725013367997,8.52411163,2521.6,2521.5,1.66127174]
[1725013368588,8.52411163,2521.6,2521.5,2.03487174]
[1725013369175,8.52411163,2521.6,2521.5,0.3736]
[1725013369196,8.52411163,2521.6,2521.5,1.39276901]
[1725013369599,8.52411163,2521.6,2521.5,2.03528849]
[1725013372217,8.52411163,2521.6,2521.5,0.3736]
[1725013372415,8.52411163,2521.6,2521.5,1.42786091]
[1725013372593,8.52411163,2521.6,2521.5,2.03570374]
[1725013374097,7.53273163,2521.6,2521.5,2.03570374]
[1725013374607,7.53273163,2521.6,2521.5,2.44729687]
[1725013374827,7.14893163,2521.6,2521.5,2.44729687]
[1725013375006,7.14893163,2521.6,2521.5,2.48212533]
[1725013375558,4.33100163,2521.6,2521.5,16.5970738]
[1725013375781,1.43,2521.8,2521.7,0.39653]
[1725013375892,1.43,2521.8,2521.7,5.79338692]
[1725013376096,1.43,2521.8,2521.7,10.70363096]
[1725013376417,1.43,2521.8,2521.7,13.25040688]
[1725013377002,0.00593859,2522.1,2521.7,11.86253688]
[1725013377312,0.00593859,2522.1,2522.0,3.93436592]
[1725013377503,1.43,2522.3,2522.2,1.38759]
[1725013377697,1.43,2522.4,2522.3,1.38754]
[1725013377896,1.43,2522.4,2522.3,7.77365592]
[1725013378102,5.81162563,2522.4,2522.3,10.70134735]
[1725013378370,5.81162563,2522.4,2522.3,6.71840687]
[1725013378616,5.81162563,2522.4,2522.3,8.31060102]
[1725013378810,5.81162563,2522.4,2522.3,9.10119181]
[1725013379006,5.81162563,2522.4,2522.3,7.27355285]
[1725013380303,5.81162563,2522.4,2522.3,8.31060102]
[1725013380906,6.20804563,2522.4,2522.3,8.31060102]
[1725013381295,6.20804563,2522.4,2522.3,7.27355285]
[1725013381498,6.20804563,2522.4,2522.3,7.43331493]
[1725013381700,6.20804563,2522.4,2522.3,6.39626676]
[1725013381995,6.20804563,2522.4,2522.3,2.43146676]
[1725013383827,6.20804563,2522.4,2522.3,1.82421659]
[1725013384052,6.20804563,2522.4,2522.3,2.43209716]
[1725013384210,6.20804563,2522.4,2522.3,2.43210487]
[1725013384405,6.20804563,2522.4,2522.3,2.43210377]
[1725013385905,6.20804563,2522.4,2522.3,2.03566377]
[1725013386407,6.59014563,2522.4,2522.3,1.39347019]
[1725013387101,7.58121563,2522.4,2522.3,1.01877019]
[1725013387309,12.53708563,2522.4,2522.3,1.01877019]
[1725013387503,12.53708563,2522.4,2522.3,0.41129098]
[1725013387703,12.53708563,2522.4,2522.0,0.3618]
[1725013387704,0.39647,2522.1,2522.0,0.3618]
[1725013387909,0.39647,2522.1,2522.0,0.96954225]
[1725013387910,1.82647,2522.1,2522.0,0.96954225]
[1725013388102,6.03306241,2522.1,2522.0,0.96954225]
[1725013389612,7.02424241,2522.1,2522.0,0.96954225]
[1725013389814,7.38474241,2522.1,2522.0,0.96954225]
[1725013390700,7.38474241,2522.1,2522.0,0.96954863]
[1725013392517,7.38474241,2522.1,2522.0,0.96954166]
[1725013394020,7.38474241,2522.1,2522.0,0.96954507]
[1725013394811,0.39652,2521.8,2521.7,0.3816]
[1725013395010,0.39652,2521.8,2521.7,2.39707604]
[1725013395011,1.82652,2521.8,2521.7,2.39707604]
[1725013395211,6.17606286,2521.8,2521.7,0.97656138]
[1725013397814,7.16736286,2521.8,2521.7,0.97656138]
[1725013399718,8.15866286,2521.8,2521.7,0.41140981]
[1725013399923,12.12426286,2521.8,2521.7,0.41140981]
[1725013400123,12.12426286,2521.8,2521.5,0.3615]
[1725013400124,1.38793,2521.6,2521.5,0.3615]
[1725013400321,1.38798,2521.5,2521.4,1.03704817]
[1725013400515,2.15978,2521.5,2521.4,1.44851117]
[1725013400715,7.3192745,2521.5,2521.4,1.03704817]
[1725013400935,7.3192745,2521.5,2521.4,1.44852046]
[1725013401221,7.3192745,2521.5,2521.4,1.03704817]
[1725013402530,6.3278545,2521.5,2521.4,1.03704817]
[1725013402720,7.7578545,2521.5,2521.4,1.44851437]
[1725013403423,7.3708545,2521.5,2521.4,1.44851437]
[1725013403872,7.3708545,2521.5,2521.4,0.41147368]
[1725013404328,7.3708545,2521.5,2521.4,4.36218]
[1725013404329,4.1680745,2521.5,2521.4,4.36218]
[1725013404536,4.1680745,2521.5,2521.4,13.015356]
[1725013404724,1.43,2521.6,2521.5,0.39656]
[1725013405029,1.43,2521.6,2521.5,5.74272789]
[1725013405223,1.43,2521.6,2521.5,6.38511994]
[1725013405429,1.43,2521.6,2521.5,6.73414789]
[1725013405632,1.43,2521.6,2521.5,7.37651793]
[1725013405831,0.39652,2521.8,2521.7,0.39653]
[1725013406019,0.39652,2521.8,2521.7,0.80797409]
[1725013406218,6.14763321,2521.8,2521.7,1.41570339]
[1725013406429,6.14763321,2521.8,2521.7,0.80797409]
[1725013407033,6.14763321,2521.8,2521.7,0.39653]
[1725013407274,6.14763321,2521.8,2521.7,0.80791407]
[1725013408336,6.14763321,2521.8,2521.7,1.41567545]
[1725013408337,4.32111321,2521.8,2521.7,1.41567545]
[1725013408523,5.75111321,2521.8,2521.7,1.41567545]
[1725013409128,1.43,2522.0,2521.9,0.3965]
[1725013409337,1.43,2522.0,2521.9,2.40677237]
[1725013409629,1.43,2522.0,2521.9,10.22148853]
[1725013410483,1.43,2522.0,2521.9,10.22136092]
[1725013411632,1.43,2522.0,2521.9,9.23010092]
[1725013413034,6.97434972,2522.0,2521.9,4.86880092]
[1725013413227,8.09664972,2522.0,2521.9,4.86880092]
[1725013413539,8.09664972,2522.0,2521.9,4.22668476]
[1725013413890,8.09664972,2522.0,2521.9,3.2078]
[1725013413947,8.09664972,2522.0,2521.9,4.22653061]
[1725013414840,13.05266972,2522.0,2521.9,1.01873061]
[1725013415537,13.05266972,2522.0,2521.9,0.41122666]
[1725013416334,13.05266972,2522.0,2521.9,1.01881695]
[1725013417045,13.05266972,2522.0,2521.9,1.01888583]
[1725013417632,9.08786972,2522.0,2521.9,1.01888583]
[1725013418136,13.05266972,2522.0,2521.9,1.01888583]
[1725013420250,0.39653,2521.7,2521.6,0.78665]
[1725013420462,1.82653,2521.7,2521.6,1.42893634]
[1725013420544,6.20641624,2521.7,2521.6,3.3257922]
[1725013421539,6.20641624,2521.7,2521.6,4.36284037]
[1725013421837,7.19775624,2521.7,2521.6,2.9292422]
[1725013422643,7.19775624,2521.7,2521.6,3.3257922]
[1725013423539,7.19775624,2521.7,2521.6,0.78665]
[1725013423741,7.19775624,2521.7,2521.6,3.32639725]
[1725013423936,6.20641624,2521.7,2521.6,3.32639725]
[1725013424133,6.20641624,2521.7,2521.6,3.71489725]
[1725013425100,6.20641624,2521.7,2521.6,1.17515]
[1725013425242,6.20641624,2521.7,2521.6,3.71486227]
[1725013425442,6.20641624,2521.7,2521.6,4.75191044]
[1725013427546,6.20641624,2521.7,2521.6,5.54306669]
[1725013427937,4.37988624,2521.7,2521.6,6.53444669]
[1725013428143,4.37988624,2521.7,2521.6,13.47452269]
[1725013428446,1.43,2521.8,2521.7,0.39653]
[1725013428642,1.43,2521.8,2521.7,8.7306297]
[1725013429045,1.82652,2521.8,2521.7,7.93947345]
[1725013429238,1.82652,2521.8,2521.7,8.73062126]
[1725013430249,1.82652,2521.8,2521.7,4.76502126]
[1725013430453,7.31236238,2521.8,2521.7,4.36849126]
[1725013430754,7.31236238,2521.8,2521.7,2.53971227]
[1725013432749,7.67646238,2521.8,2521.7,2.53971227]
[1725013433357,7.67646238,2521.8,2521.7,4.3685215]
[1725013433674,7.67646238,2521.8,2521.7,1.48588878]
[1725013433866,7.67646238,2521.8,2521.7,2.53974236]
[1725013434151,12.63336238,2521.8,2521.7,2.53974236]
[1725013435659,12.63336238,2521.8,2521.7,1.05385358]
[1725013437324,0.39655,2521.6,2521.5,4.64199118]
[1725013437560,6.14419376,2521.6,2521.5,4.64199118]
[1725013438150,7.13557376,2521.6,2521.5,4.64199118]
[1725013440055,7.13557376,2521.6,2521.5,1.43419118]
[1725013441052,6.14419376,2521.6,2521.5,1.43419118]
[1725013442057,6.14419376,2521.6,2521.5,7.90112407]
[1725013442058,0.39655,2521.6,2521.5,7.90112407]
[1725013442258,0.39655,2521.6,2521.5,6.34532077]
[1725013443479,0.39655,2521.6,2521.5,8.85805901]
[1725013444454,0.39655,2521.6,2521.5,10.70310237]
[1725013444898,0.39655,2521.6,2521.5,6.34532077]
[1725013445214,0.39655,2521.6,2521.5,7.54792169]
[1725013445275,0.39655,2521.6,2521.5,10.70309792]
[1725013447369,0.39655,2521.6,2521.5,12.25890122]
[1725013448865,1.82654,2521.7,2521.6,0.39655]
[1725013449161,1.82654,2521.7,2521.6,6.73748792]
[1725013449756,1.82654,2521.7,2521.6,4.75432715]
[1725013449951,1.82654,2521.7,2521.6,6.73752178]
[1725013451373,1.82654,2521.7,2521.6,4.22478779]
[1725013451760,1.82654,2521.7,2521.6,6.73750918]
[1725013454884,1.82654,2521.7,2521.6,6.7375203]
[1725013456264,1.82654,2521.7,2521.6,8.2933236]
[1725013458071,1.82654,2521.7,2521.6,8.29328601]
[1725013459065,1.82654,2521.7,2521.6,8.29323573]
[1725013459376,1.82654,2521.7,2521.6,6.73743243]
[1725013459570,1.82654,2521.7,2521.6,6.73743246]
[1725013460068,1.82654,2521.7,2521.6,8.29783608]
[1725013461586,1.82654,2521.7,2521.6,5.78511469]
[1725013461592,1.82654,2521.7,2521.6,8.29784302]
[1725013462670,0.39654,2521.7,2521.6,8.29784302]
[1725013462973,0.39654,2521.7,2521.6,6.7374394]
[1725013464170,3.2078,2522.4,2521.9,0.99126]
[1725013464363,1.43,2522.2,2522.1,2.94766064]
[1725013464599,3.2078,2522.4,2522.2,1.38756]
[1725013464600,4.57868528,2522.3,2522.2,1.38756]
[1725013464775,1.43,2522.4,2522.3,1.38754]
[1725013464976,1.43,2522.4,2522.3,10.42720544]
[1725013465277,1.43,2522.4,2522.3,7.7276197]
[1725013465278,5.72067061,2522.4,2522.3,7.7276197]
[1725013465674,5.72067061,2522.4,2522.3,6.7365197]
[1725013466266,5.72067061,2522.4,2522.3,8.29402184]
[1725013467841,5.72067061,2522.4,2522.3,3.93685005]
[1725013468096,5.72067061,2522.4,2522.3,6.44897931]
[1725013468168,5.72067061,2522.4,2522.3,8.29341858]
[1725013468369,5.72067061,2522.4,2522.3,5.70934059]
[1725013469264,5.72067061,2522.4,2522.3,4.76370364]
[1725013470274,5.72067061,2522.4,2522.3,3.97278308]
[1725013472471,5.72067061,2522.4,2522.3,2.93551212]
[1725013473875,4.29067061,2522.4,2522.3,7.89141212]
[1725013474077,0.00593859,2522.6,2522.5,1.38744]
[1725013474331,0.00593859,2522.6,2522.5,5.63153891]
[1725013474602,1.43593859,2522.6,2522.5,7.29260828]
[1725013474780,1.43593859,2522.6,2522.5,7.17942156]
[1725013474981,1.43593859,2522.6,2522.5,6.14312265]
[1725013476078,1.43593859,2522.6,2522.5,5.26527937]
[1725013476079,1.83232859,2522.6,2522.5,5.26527937]
[1725013476297,1.43593859,2522.6,2522.5,4.65764107]
[1725013476477,1.83232859,2522.6,2522.5,5.26528202]
[1725013477575,1.83232859,2522.6,2522.5,2.05748202]
[1725013477782,1.83232859,2522.6,2522.5,3.60421]
[1725013478034,1.83232859,2522.6,2522.5,5.26531411]
[1725013478280,1.83232859,2522.6,2522.5,2.05751411]
[1725013478482,1.83232859,2522.6,2522.5,1.41531769]
[1725013478876,1.83232859,2522.6,2522.5,2.05752237]
[1725013479083,1.83232859,2522.6,2522.5,1.41531769]
[1725013481186,1.83232859,2522.6,2522.5,0.39641]
[1725013481423,1.83232859,2522.6,2522.5,1.41532955]
[1725013482878,2.82331859,2522.6,2522.5,0.41127009]
[1725013483081,0.39641,2522.5,2522.4,3.2078]
[1725013483285,2.18811,2522.5,2522.4,3.61908867]
[1725013484706,2.18811,2522.5,2522.4,3.61909599]
[1725013484977,2.18811,2522.5,2522.4,4.62318623]
[1725013485480,2.18811,2522.5,2522.4,4.22676623]
[1725013485688,7.69193713,2522.5,2522.4,3.61909599]
[1725013486287,7.69193713,2522.5,2522.4,4.01551599]
[1725013486887,7.69193713,2522.5,2522.4,3.61909599]
[1725013487292,8.68296713,2522.5,2522.4,3.61909599]
[1725013487484,0.99117,2522.2,2521.9,0.39649]
[1725013487688,10.26849713,2522.5,2522.0,1.01904484]
[1725013487689,0.7322,2522.1,2522.0,1.01904484]
[1725013487909,5.48349091,2522.1,2522.0,0.39649]
[1725013488127,5.48349091,2522.1,2522.0,0.80784041]
[1725013488384,5.48349091,2522.1,2522.0,0.41135041]
[1725013488592,7.90467091,2522.1,2522.0,1.01909911]
[1725013488787,7.90467091,2522.1,2522.0,0.41135041]
[1725013489191,7.90467091,2522.1,2522.0,1.41558024]
[1725013489385,7.90467091,2522.1,2522.0,1.01909024]
[1725013489587,7.90467091,2522.1,2522.0,1.41558024]
[1725013489785,7.90467091,2522.1,2522.0,1.01909024]
[1725013493091,7.90467091,2522.1,2522.0,0.41135041]
[1725013493092,16.06845091,2522.1,2522.0,0.41135041]
[1725013493294,12.86065091,2522.1,2522.0,0.41135041]
[1725013493596,0.39653,2521.8,2521.7,0.39653]
[1725013493797,1.82653,2521.8,2521.7,1.41570796]
[1725013493998,1.82653,2521.8,2521.7,2.05812106]
[1725013494198,2.19923,2521.8,2521.7,2.05812106]
[1725013494398,2.19923,2521.8,2521.7,2.05811063]
[1725013495890,2.19923,2521.8,2521.7,2.05808827]
[1725013496295,6.56629651,2521.8,2521.7,1.41569753]
[1725013496493,6.56629651,2521.8,2521.7,2.05811832]
[1725013496697,7.55759651,2521.8,2521.7,1.01916753]
[1725013496901,7.55759651,2521.8,2521.7,1.66160877]
[1725013497509,7.55759651,2521.8,2521.7,1.45037022]
[1725013497730,7.55759651,2521.8,2521.7,2.05816159]
[1725013499007,6.56629651,2521.8,2521.7,2.05816159]
[1725013500001,6.56629651,2521.8,2521.7,1.66163159]
[1725013500300,7.55759651,2521.8,2521.7,1.66163159]
[1725013500742,7.55759651,2521.8,2521.7,2.05816159]
[1725013501307,6.56629651,2521.8,2521.7,1.43282891]
[1725013501506,6.56629651,2521.8,2521.7,0.39653]
[1725013502101,6.56629651,2521.8,2521.7,1.0042994]
[1725013502501,6.56629651,2521.8,2521.7,2.04059831]
[1725013502896,7.55759651,2521.8,2521.7,1.64406831]
[1725013503099,7.55759651,2521.8,2521.7,0.6077694]
[1725013503705,8.54889651,2521.8,2521.7,0.6077694]
[1725013504901,12.51449651,2521.8,2521.7,0.6077694]
[1725013505102,0.3966,2521.3,2521.2,1.03629891]
[1725013505404,0.39661,2521.2,2521.1,0.40255859]
[1725013505699,2.18101,2521.2,2521.1,0.40255859]
[1725013505896,1.43,2521.2,2521.1,3.61035859]
[1725013506140,1.82661,2521.3,2521.2,0.39661]
[1725013506303,0.39656,2521.6,2521.5,0.39655]
[1725013506609,6.29581996,2521.6,2521.5,0.39655]
[1725013507613,6.67521996,2521.6,2521.5,0.39655]
[1725013507811,6.29581996,2521.6,2521.5,0.39655]
[1725013509401,0.39657,2521.5,2521.4,0.39657]
[1725013509597,2.57267,2521.5,2521.4,0.39657]
[1725013509797,6.70572111,2521.5,2521.4,0.39657]
[1725013510003,7.69713111,2521.5,2521.4,0.41146348]
[1725013510202,11.66273111,2521.5,2521.4,0.41146348]
[1725013511302,0.39661,2521.3,2521.2,0.39661]
[1725013511498,1.82661,2521.3,2521.2,0.80810959]
[1725013511703,7.78072093,2521.3,2521.2,0.41149959]
[1725013511906,12.73862093,2521.3,2521.2,0.41149959]
[1725013512319,1.38815,2521.2,2521.1,0.00593859]
[1725013512615,6.31206715,2521.2,2521.1,0.00593859]
[1725013513732,5.32052715,2521.2,2521.1,0.40256859]
[1725013516706,4.55071715,2521.2,2521.1,0.40256859]
[1725013517409,4.55071715,2521.2,2521.1,0.79596859]
[1725013518523,4.94732715,2521.2,2521.1,0.79596859]
[1725013518720,5.32192715,2521.2,2521.1,0.79596859]
[1725013519214,4.92531715,2521.2,2521.1,0.79596859]
[1725013519718,5.32192715,2521.2,2521.1,0.79596859]
[1725013519920,4.92531715,2521.2,2521.1,0.79596859]
[1725013520118,5.32192715,2521.2,2521.1,0.79596859]
[1725013522217,5.32192715,2521.2,2521.1,0.40256859]
[1725013526217,5.32192715,2521.2,2521.1,0.81405976]
[1725013526806,5.32192715,2521.2,2521.1,0.8140614]
[1725013529322,6.31346715,2521.2,2521.1,0.8140614]
[1725013529711,6.31346715,2521.2,2521.1,0.40256859]
[1725013530119,6.31346715,2521.2,2521.1,0.81408356]
[1725013533025,6.31346715,2521.2,2521.1,0.41745356]
[1725013533386,6.31346715,2521.2,2521.1,0.4174536]
[1725013533422,6.31346715,2521.2,2521.1,1.02522157]
[1725013534038,7.30500715,2521.2,2521.1,0.4174536]
[1725013536758,7.30500715,2521.2,2521.1,0.41747167]
[1725013537134,7.30500715,2521.2,2521.1,1.02525637]
[1725013539851,7.30500715,2521.2,2521.1,1.02523555]
[1725013540254,7.30500715,2521.2,2521.1,1.66784852]
[1725013543371,7.30500715,2521.2,2521.1,1.06008059]
[1725013543450,7.30500715,2521.2,2521.1,1.66785984]
[1725013543649,11.27140715,2521.2,2521.1,1.66785984]
[1725013544043,11.27140715,2521.2,2521.1,2.5459836]
[1725013544760,11.27140715,2521.2,2521.1,1.4918416]
[1725013544952,11.27140715,2521.2,2521.1,2.54599079]
[1725013546605,11.27140715,2521.2,2521.1,1.90337062]
[1725013546879,11.27140715,2521.2,2521.1,2.54599243]
[1725013547156,7.30500715,2521.2,2521.1,2.54599243]
[1725013547352,11.27140715,2521.2,2521.1,2.54599243]
[1725013547752,7.30500715,2521.2,2521.1,2.54599243]
[1725013548155,11.27140715,2521.2,2521.1,2.54599243]
[1725013548361,7.30500715,2521.2,2521.1,2.54599243]
[1725013549065,3.94294775,2521.2,2521.1,8.69198766]
[1725013549256,0.39658,2521.5,2521.4,0.39658]
[1725013549456,1.82658,2521.5,2521.4,3.72801907]
[1725013549653,6.13540025,2521.5,2521.4,4.76704716]
[1725013549912,6.13540025,2521.5,2521.4,2.24187311]
[1725013550174,6.13540025,2521.5,2521.4,3.72763091]
[1725013550357,6.13540025,2521.5,2521.4,4.370079]
[1725013550660,6.13540025,2521.5,2521.4,4.766659]
[1725013551653,6.13540025,2521.5,2521.4,4.370079]
[1725013552157,6.13540025,2521.5,2521.4,2.53975913]
[1725013552466,7.12682025,2521.5,2521.4,2.53975913]
[1725013553467,0.39658,2521.4,2521.3,1.42182809]
[1725013553662,5.23793302,2521.4,2521.3,4.7529767]
[1725013553854,6.22939302,2521.4,2521.3,4.7529767]
[1725013554057,6.22939302,2521.4,2521.3,2.53982968]
[1725013554258,6.61589302,2521.4,2521.3,2.53982968]
[1725013554561,6.61589302,2521.4,2521.3,4.37019592]
[1725013555964,6.61589302,2521.4,2521.3,3.33116783]
[1725013556165,6.61589302,2521.4,2521.3,2.53982968]
[1725013556366,7.60735302,2521.4,2521.3,3.33118234]
[1725013556626,7.60735302,2521.4,2521.3,4.37020409]
[1725013556861,11.57375302,2521.4,2521.3,2.53982968]
[1725013557063,11.57375302,2521.4,2521.3,2.539891]
[1725013557257,11.57375302,2521.4,2521.3,1.66177527]
[1725013557563,11.57375302,2521.4,2521.3,2.53988469]
[1725013558363,11.57375302,2521.4,2521.3,1.66177527]
[1725013558873,11.57375302,2521.4,2521.3,2.53987746]
[1725013558874,13.00375302,2521.4,2521.3,2.53987746]
[1725013559553,13.00375302,2521.4,2521.3,1.66177527]
[1725013559755,13.00375302,2521.4,2521.2,0.3549]
[1725013559756,1.3881,2521.3,2521.2,0.3549]
[1725013560009,1.7726,2521.3,2521.2,1.4090365]
[1725013560161,10.07179372,2521.3,2521.2,2.28715193]
[1725013560370,6.10539372,2521.3,2521.2,2.89492913]
[1725013561257,0.3966,2521.3,2521.2,6.06647226]
[1725013561459,6.12204331,2521.3,2521.2,7.09328803]
[1725013561860,6.12204331,2521.3,2521.2,6.06647226]
[1725013562366,6.12204331,2521.3,2521.2,4.58041848]
[1725013562565,6.12204331,2521.3,2521.2,7.0930209]
[1725013563877,6.12204331,2521.3,2521.2,2.73507604]
[1725013564152,6.12204331,2521.3,2521.2,7.09303023]
[1725013564268,6.12204331,2521.3,2521.2,6.69642801]
[1725013564269,7.11354331,2521.3,2521.2,6.69642801]
[1725013564466,7.11354331,2521.3,2521.2,4.72592549]
[1725013565542,7.11354331,2521.3,2521.2,1.39479008]
[1725013565824,7.11354331,2521.3,2521.2,4.72604603]
[1725013566973,7.11354331,2521.3,2521.2,4.72604969]
[1725013567576,7.11354331,2521.3,2521.2,5.12265969]
[1725013567978,7.11354331,2521.3,2521.2,1.79140008]
[1725013568268,5.72544331,2521.3,2521.2,8.6153486]
[1725013568474,1.43,2521.3,2521.2,13.60857633]
[1725013568862,1.8266,2521.3,2521.2,12.61703633]
[1725013569064,1.8266,2521.3,2521.2,12.61695115]
[1725013569381,1.8266,2521.3,2521.2,11.59002461]
[1725013569673,1.8266,2521.3,2521.2,12.61683137]
[1725013570065,1.8266,2521.3,2521.2,8.65043137]
[1725013570264,6.32631491,2521.3,2521.2,6.06612247]
[1725013570476,6.32631491,2521.3,2521.2,6.06622858]
[1725013570673,6.71341491,2521.3,2521.2,7.09305874]
[1725013570866,6.71341491,2521.3,2521.2,7.62373072]
[1725013571082,7.70491491,2521.3,2521.2,7.62373072]
[1725013571878,7.70491491,2521.3,2521.2,6.06622858]
[1725013572072,7.70491491,2521.3,2521.2,4.29263855]
[1725013572280,7.70491491,2521.3,2521.2,7.62377874]
[1725013572594,7.70491491,2521.3,2521.2,4.29263855]
[1725013572868,7.70491491,2521.3,2521.2,6.06627438]
[1725013573977,7.70491491,2521.3,2521.2,6.06623505]
[1725013574173,7.70491491,2521.3,2521.2,6.06624539]
[1725013574763,7.70491491,2521.3,2521.2,5.71134539]
[1725013575678,7.70491491,2521.3,2521.2,5.31473539]
[1725013576042,7.70491491,2521.3,2521.2,1.98358708]
[1725013576075,7.70491491,2521.3,2521.2,4.43673278]
[1725013576277,8.69641491,2521.3,2521.2,5.31480191]
[1725013576471,8.69641491,2521.3,2521.2,3.33121483]
[1725013576472,12.66281491,2521.3,2521.2,3.33121483]
[1725013576673,12.66281491,2521.3,2521.2,4.37103499]
[1725013577167,8.69641491,2521.3,2521.2,4.37103499]
[1725013577370,12.66281491,2521.3,2521.2,4.37103499]
[1725013579080,12.66281491,2521.3,2521.2,4.3710538]
[1725013579480,8.69641491,2521.3,2521.2,4.3710538]
[1725013579670,12.66281491,2521.3,2521.2,4.3710538]
[1725013580180,8.69641491,2521.3,2521.2,4.3710538]
[1725013580381,8.69641491,2521.3,2521.2,3.33123364]
[1725013580982,4.89631491,2521.3,2521.2,6.7381523]
[1725013581173,4.89631491,2521.3,2521.2,12.26205444]
[1725013581482,4.89631491,2521.3,2521.2,10.2785677]
[1725013581681,4.89631491,2521.3,2521.2,6.3121677]
[1725013581981,4.89631491,2521.3,2521.2,4.75466556]
[1725013582279,4.89631491,2521.3,2521.2,4.75460962]
[1725013582676,5.88781491,2521.3,2521.2,6.73816763]
[1725013582877,5.88781491,2521.3,2521.2,6.34156152]
[1725013583082,5.88781491,2521.3,2521.2,5.31473571]
[1725013583272,6.27811491,2521.3,2521.2,5.31473571]
[1725013585186,6.27811491,2521.3,2521.2,3.3311777]
[1725013585607,0.39661,2521.2,2521.1,1.96005073]
[1725013585851,1.82661,2521.2,2521.1,4.4131794]
[1725013586097,6.34119731,2521.2,2521.1,6.31807845]
[1725013586682,6.34119731,2521.2,2521.1,6.31807843]
[1725013587082,7.33273731,2521.2,2521.1,6.31807843]
[1725013587279,8.32427731,2521.2,2521.1,5.92146843]
[1725013591989,8.32427731,2521.2,2521.1,4.07614057]
[1725013592223,8.32427731,2521.2,2521.1,5.92158033]
[1725013593793,8.32427731,2521.2,2521.1,5.92157379]
[1725013594887,8.32427731,2521.2,2521.1,7.90524105]
[1725013599018,8.32427731,2521.2,2521.1,3.54710799]
[1725013599024,8.32427731,2521.2,2521.1,5.39254775]
[1725013599262,8.32427731,2521.2,2521.1,6.05980783]
[1725013599403,8.32427731,2521.2,2521.1,7.90524813]
[1725013599690,8.32427731,2521.2,2521.1,9.53986448]
[1725013600692,8.32427731,2521.2,2521.1,9.5398686]
[1725013602124,8.32427731,2521.2,2521.1,5.1817282]
[1725013602370,8.32427731,2521.2,2521.1,9.53986787]
[1725013603886,8.32427731,2521.2,2521.1,7.98236573]
[1725013605677,8.32427731,2521.2,2521.1,3.62422606]
[1725013605744,8.32427731,2521.2,2521.1,5.99872538]
[1725013605888,8.32427731,2521.2,2521.1,7.98241518]
[1725013606088,8.32427731,2521.2,2521.1,9.53991732]
[1725013608500,8.32427731,2521.2,2521.1,7.90530123]
[1725013608893,8.32427731,2521.2,2521.1,7.90529823]
[1725013610596,8.32427731,2521.2,2521.1,7.90529605]
[1725013611500,4.91119731,2521.2,2521.1,8.30192605]
[1725013611709,6.34119731,2521.2,2521.1,6.34779391]
[1725013611895,6.34119731,2521.2,2521.1,6.74442391]
[1725013612502,6.34119731,2521.2,2521.1,8.30537582]
[1725013612889,6.34119731,2521.2,2521.1,6.74442391]
[1725013614895,7.33273731,2521.2,2521.1,7.90873628]
[1725013615336,7.33273731,2521.2,2521.1,4.8401643]
[1725013615595,7.33273731,2521.2,2521.1,5.63149956]
[1725013615810,7.33273731,2521.2,2521.1,7.90869723]
[1725013618758,7.33273731,2521.2,2521.1,7.90869872]
[1725013620706,7.33273731,2521.2,2521.1,6.34775635]
[1725013620707,5.90273731,2521.2,2521.1,6.34775635]
[1725013620999,6.34119731,2521.2,2521.1,8.30532872]
[1725013621231,6.34119731,2521.2,2521.1,8.3054275]
[1725013621600,6.34119731,2521.2,2521.1,6.74448513]
[1725013622003,4.51458731,2521.2,2521.1,6.74448513]
[1725013622505,1.43,2521.2,2521.1,6.74448513]
[1725013622906,5.79240885,2521.2,2521.1,6.74448513]
[1725013623610,5.79240885,2521.2,2521.1,6.74436673]
[1725013624446,5.79240885,2521.2,2521.1,6.74405557]
[1725013625988,5.79240885,2521.2,2521.1,5.31020622]
[1725013626110,5.79240885,2521.2,2521.1,6.74406375]
[1725013626307,4.36240885,2521.2,2521.1,6.74406375]
[1725013626503,4.174,2521.8,2521.7,0.39653]
[1725013626697,5.604,2521.8,2521.7,4.76815438]
[1725013626896,9.74524473,2521.8,2521.7,8.29846329]
[1725013627101,9.74524473,2521.8,2521.7,12.26406329]
[1725013627716,9.74524473,2521.8,2521.7,10.70320017]
[1725013627903,5.57124473,2521.8,2521.7,12.26406329]
[1725013628303,5.57124473,2521.8,2521.7,12.26360607]
[1725013628610,5.57124473,2521.8,2521.7,7.13641659]
[1725013629113,5.57124473,2521.8,2521.7,8.69727971]
[1725013629314,3.6043,2521.9,2521.8,0.39652]
[1725013629315,3.2078,2521.9,2521.8,0.39652]
[1725013629575,5.0343,2521.9,2521.8,1.43578134]
[1725013629889,5.0343,2521.9,2521.8,8.73189642]
[1725013630014,5.0343,2521.9,2521.8,8.33537642]
[1725013630714,5.0343,2521.9,2521.8,4.36977642]
[1725013630915,5.0343,2521.9,2521.8,4.76629642]
[1725013631118,3.6043,2521.9,2521.8,7.94075338]
[1725013631314,5.0343,2521.9,2521.8,7.94075338]
[1725013631660,9.61648971,2521.9,2521.8,1.43578134]
[1725013631819,9.61648971,2521.9,2521.8,8.73185473]
[1725013632214,9.61648971,2521.9,2521.8,7.94072326]
[1725013633012,9.61648971,2521.9,2521.8,3.97512326]
[1725013633317,9.61648971,2521.9,2521.8,2.53934192]
[1725013633518,6.40868971,2521.9,2521.8,2.53934192]
[1725013633720,6.40868971,2521.9,2521.8,6.90146192]
[1725013633721,4.97868971,2521.9,2521.8,6.90146192]
[1725013634020,6.40868971,2521.9,2521.8,2.53934192]
[1725013634320,6.40868971,2521.9,2521.8,1.66143767]
[1725013635306,0.39652,2521.8,2521.7,0.39652]
[1725013635371,0.39652,2521.8,2521.7,1.45033601]
[1725013635526,4.6261085,2521.8,2521.7,2.93590916]
[1725013637320,4.6261085,2521.8,2521.7,2.53938916]
[1725013638177,0.39653,2521.7,2521.6,1.39556134]
[1725013638227,0.39655,2521.6,2521.5,5.02311134]
[1725013638525,0.39655,2521.6,2521.5,7.56256272]
[1725013638526,5.7309899,2521.6,2521.5,7.56256272]
[1725013639326,5.7309899,2521.6,2521.5,7.16601272]
[1725013639517,5.7309899,2521.6,2521.5,2.91895138]
[1725013640013,5.7309899,2521.6,2521.5,2.04101213]